fUSD/lending_fUSD_20240118
["ID","MTS","AMOUNT","RATE_DAILY","PERIOD"]
[312014862,1705548641826,-150.0,0.00022053,2]
[312014863,1705548641835,-1000.0,0.00022091,2]
[312014864,1705548641845,-742.02261474,0.00022091,2]
[312014865,1705548641854,-448.82077763,0.00022126,2]
[312014866,1705548641864,-168.41380749,0.00022181,2]
[312014867,1705548641874,-150.0,0.00022188,2]
[312014868,1705548641884,-500.0,0.0002219,2]
[312014869,1705548641896,-500.0,0.0002219,2]
[312014870,1705548641905,-500.0,0.0002219,2]
[312014871,1705548641914,-500.0,0.0002219,2]
[312014872,1705548641923,-500.0,0.0002219,2]
[312014873,1705548641933,-845.31,0.0002219,2]
[312014874,1705548641942,-151.0,0.00022191,7]
[312014875,1705548641951,-173.650877,0.00022191,7]
[312014876,1705548641962,-151.0,0.00022191,7]
[312014877,1705548641971,-151.0,0.00022191,7]
[312014878,1705548641980,-1612.67125636,0.00022191,2]
[312014879,1705548641989,-500.0,0.00022191,2]
[312014880,1705548641999,-258.36292132,0.00022191,2]
[312014881,1705548642008,-500.0,0.00022191,2]
[312014882,1705548642017,-500.0,0.00022191,2]
[312014883,1705548642026,-500.0,0.00022191,2]
[312014884,1705548642036,-500.0,0.00022191,2]
[312014885,1705548642045,-500.0,0.00022191,2]
[312014886,1705548642055,-500.0,0.00022191,2]
[312014887,1705548642065,-500.0,0.00022191,2]
[312014888,1705548642074,-500.0,0.00022191,2]
[312014889,1705548642083,-513.15177371,0.00022191,2]
[312014890,1705548642093,-500.0,0.00022191,2]
[312014891,1705548642102,-500.0,0.00022191,2]
[312014892,1705548642111,-500.0,0.00022191,2]
[312014893,1705548642121,-500.0,0.00022191,2]
[312014894,1705548642130,-500.0,0.00022191,2]
[312014895,1705548642139,-932.33,0.00022191,2]
[312014896,1705548642149,-500.0,0.00022191,2]
[312014897,1705548642158,-500.0,0.00022191,2]
[312014898,1705548642167,-367.84553568,0.00022191,2]
[312014899,1705548642176,-513.54794095,0.00022191,2]
[312014900,1705548642185,-297.14,0.00022191,2]
[312014901,1705548642196,-519.40323682,0.00022191,2]
[312014902,1705548642206,-500.0,0.00022191,2]
[312014903,1705548642215,-701.06,0.00022191,2]
[312014904,1705548642224,-491.45039241,0.00022191,2]
[312014905,1705548642234,-500.0,0.00022191,2]
[312014906,1705548642243,-560.50871374,0.00022191,2]
[312014907,1705548642252,-500.0,0.00022191,2]
[312014908,1705548642262,-500.0,0.00022191,2]
[312014909,1705548642271,-500.0,0.00022191,2]
[312014910,1705548642280,-500.0,0.00022191,2]
[312014911,1705548642290,-500.0,0.00022191,2]
[312014912,1705548642299,-511.88232896,0.00022191,2]
[312014913,1705548642308,-500.0,0.00022191,2]
[312014914,1705548642318,-500.0,0.00022191,2]
[312014915,1705548642327,-251.62555194,0.00022191,2]
[312014916,1705548642336,-580.86307783,0.00022191,2]
[312014917,1705548642346,-317.51025385,0.00022191,2]
[312014918,1705548642355,-507.17270586,0.00022191,2]
[312014919,1705548642364,-500.18,0.00022191,2]
[312014920,1705548642373,-229.92538258,0.00022191,2]
[312014921,1705548642383,-500.0,0.00022191,2]
[312014922,1705548642392,-384.08452859,0.00022191,2]
[312014923,1705548642485,-115.91547141,0.00022191,2]
[312014924,1705548642494,-500.0,0.00022191,2]
[312014925,1705548642504,-500.0,0.00022191,2]
[312014926,1705548642514,-343.96166196,0.00022191,2]
[312014927,1705548642523,-500.0,0.00022191,2]
[312014928,1705548642532,-500.0,0.00022191,2]
[312014929,1705548642542,-174.46809146,0.00022191,2]
[312014930,1705548642551,-500.0,0.00022191,2]
[312014931,1705548642560,-500.0,0.00022191,2]
[312014932,1705548642569,-500.0,0.00022191,2]
[312014933,1705548642579,-635.5,0.00022191,2]
[312014934,1705548642588,-500.0,0.00022191,2]
[312014935,1705548642597,-497.00260637,0.00022191,2]
[312014936,1705548642607,-646.12742166,0.00022191,2]
[312014937,1705548642616,-509.1544529,0.00022191,2]
[312014938,1705548642625,-500.0,0.00022191,2]
[312014940,1705548642862,-288.37872789,0.00022191,2]
[312014941,1705548642877,-211.62127211,0.00022191,2]
[312014942,1705548642887,-238.70423726,0.00022191,2]
[312014943,1705548642899,-275.18795682,0.00022191,2]
[312014944,1705548642908,-500.0,0.00022191,2]
[312014945,1705548642918,-29.49797245,0.00022191,2]
[312014946,1705548643150,-242.34714172,0.00022191,2]
[312014947,1705548643160,-500.0,0.00022191,2]
[312014948,1705548643169,-134.82172191,0.00022191,2]
[312014949,1705548643180,-365.17827809,0.00022191,2]
[312014950,1705548643190,-500.0,0.00022191,2]
[312014951,1705548643199,-500.0,0.00022191,2]
[312014952,1705548643208,-511.43804945,0.00022191,2]
[312014953,1705548643218,-500.0,0.00022191,2]
[312014954,1705548643228,-500.0,0.00022191,2]
[312014955,1705548643237,-500.0,0.00022191,2]
[312014956,1705548643247,-636.34844031,0.00022191,2]
[312014957,1705548643256,-500.0,0.00022191,2]
[312014958,1705548643266,-500.0,0.00022191,2]
[312014959,1705548643275,-500.0,0.00022191,2]
[312014960,1705548643285,-642.60173908,0.00022191,2]
[312014961,1705548643294,-500.0,0.00022191,2]
[312014962,1705548643303,-500.0,0.00022191,2]
[312014963,1705548643313,-500.0,0.00022191,2]
[312014965,1705548643322,-500.0,0.00022191,2]
[312014966,1705548643331,-500.0,0.00022191,2]
[312014968,1705548643341,-404.66109599,0.00022191,2]
[312014971,1705548643350,-500.0,0.00022191,2]
[312014972,1705548643360,-177.97,0.00022191,2]
[312014975,1705548643369,-500.0,0.00022191,2]
[312014977,1705548643379,-279.81490168,0.00022191,2]
[312014979,1705548643388,-5518.58,0.00022191,2]
[312014980,1705548643397,-500.0,0.00022191,2]
[312014981,1705548643406,-500.0,0.00022191,2]
[312014982,1705548643416,-500.0,0.00022191,2]
[312014983,1705548643425,-500.0,0.00022191,2]
[312014984,1705548643434,-500.0,0.00022191,2]
[312014985,1705548643444,-500.0,0.00022191,2]
[312014986,1705548643454,-508.19750073,0.00022191,2]
[312014987,1705548643463,-500.0,0.00022191,2]
[312014988,1705548643473,-500.0,0.00022191,2]
[312014989,1705548643482,-500.0,0.00022191,2]
[312014990,1705548643492,-508.59321616,0.00022191,2]
[312014991,1705548643501,-500.0,0.00022191,2]
[312014992,1705548643510,-500.0,0.00022191,2]
[312014993,1705548643520,-500.0,0.00022191,2]
[312014994,1705548643530,-270.99459361,0.00022191,2]
[312014995,1705548643539,-500.0,0.00022191,2]
[312014996,1705548643549,-512.25999308,0.00022191,2]
[312014997,1705548643558,-500.0,0.00022191,2]
[312014998,1705548643567,-500.0,0.00022191,2]
[312014999,1705548643576,-500.0,0.00022191,2]
[312015000,1705548643586,-500.0,0.00022191,2]
[312015001,1705548643594,-322.65246468,0.00022191,2]
[312015002,1705548643604,-500.0,0.00022191,2]
[312015003,1705548643613,-500.0,0.00022191,2]
[312015004,1705548643622,-500.0,0.00022191,2]
[312015005,1705548643631,-322.47490878,0.00022191,2]
[312015006,1705548643641,-500.0,0.00022191,2]
[312015007,1705548643650,-500.0,0.00022191,2]
[312015008,1705548643659,-263.15,0.00022191,2]
[312015009,1705548643668,-44.65102159,0.00022191,2]
[312015010,1705548643682,-462.43907907,0.00022191,2]
[312015011,1705548643692,-20.66055356,0.00022191,2]
[312015012,1705548643704,-479.33944644,0.00022191,2]
[312015013,1705548643713,-233.82378192,0.00022191,2]
[312015014,1705548643725,-399.83771716,0.00022191,2]
[312015015,1705548643734,-500.0,0.00022191,2]
[312015016,1705548643744,-500.0,0.00022191,2]
[312015017,1705548643753,-298.68545677,0.00022191,2]
[312015018,1705548643765,-201.31454323,0.00022191,2]
[312015019,1705548643774,-512.40262159,0.00022191,2]
[312015020,1705548643783,-75.2496492,0.00022191,2]
[312015021,1705548643798,-424.7503508,0.00022191,2]
[312015022,1705548643807,-199.7533865,0.00022191,2]
[312015023,1705548643818,-325.39577466,0.00022191,2]
[312015024,1705548643827,-508.38136871,0.00022191,2]
[312015025,1705548643838,-507.92919808,0.00022191,2]
[312015026,1705548643847,-133.41606163,0.00022191,2]
[312015027,1705548643858,-372.25801897,0.00022191,2]
[312015028,1705548643868,-500.0,0.00022191,2]
[312015029,1705548643879,-645.18270087,0.00022191,2]
[312015030,1705548643888,-500.0,0.00022191,2]
[312015031,1705548643897,-500.0,0.00022191,2]
[312015032,1705548643906,-369.03680421,0.00022191,2]
[312015033,1705548644332,-392.29490377,0.00021917,2]
[312015034,1705548644344,-107.70509623,0.00021917,2]
[312015035,1705548644354,-500.0,0.00021917,2]
[312015036,1705548644363,-130.96319579,0.00022191,2]
[312015037,1705548644373,-132.56894361,0.00022191,2]
[312015038,1705548644384,-367.43105639,0.00022191,2]
[312015039,1705548644394,-127.70442629,0.00022191,2]
[312015040,1705548644434,-372.29557371,0.00022191,2]
[312015041,1705548644444,-231.00061119,0.00022191,2]
[312015042,1705548644453,-370.05936812,0.00022191,2]
[312015043,1705548644462,-500.0,0.00022191,2]
[312015044,1705548644472,-500.0,0.00022191,2]
[312015045,1705548644481,-500.0,0.00022191,2]
[312015046,1705548644490,-183.37831023,0.00022191,2]
[312015047,1705548644499,-500.0,0.00022191,2]
[312015048,1705548644508,-500.0,0.00022191,2]
[312015049,1705548644518,-500.0,0.00022191,2]
[312015050,1705548644527,-500.0,0.00022191,2]
[312015051,1705548644536,-524.38,0.00022191,2]
[312015052,1705548644545,-500.0,0.00022191,2]
[312015053,1705548644555,-500.0,0.00022191,2]
[312015054,1705548644564,-500.0,0.00022191,2]
[312015055,1705548644573,-437.74793094,0.00022191,2]
[312015056,1705548644582,-500.0,0.00022191,2]
[312015057,1705548644592,-500.0,0.00022191,2]
[312015058,1705548644601,-500.0,0.00022191,2]
[312015059,1705548644611,-500.0,0.00022191,2]
[312015060,1705548644620,-500.0,0.00022191,2]
[312015061,1705548644629,-500.0,0.00022191,2]
[312015062,1705548644638,-500.0,0.00022191,2]
[312015063,1705548644647,-500.0,0.00022191,2]
[312015064,1705548644656,-256.71844444,0.00022191,2]
[312015065,1705548644665,-500.0,0.00022191,2]
[312015066,1705548644674,-500.0,0.00022191,2]
[312015067,1705548644684,-411.69466763,0.00022191,2]
[312015068,1705548644694,-500.0,0.00022191,2]
[312015069,1705548644703,-500.0,0.00022191,2]
[312015070,1705548644712,-500.0,0.00022191,2]
[312015071,1705548644721,-500.0,0.00022191,2]
[312015072,1705548644731,-500.0,0.00022191,2]
[312015073,1705548644740,-517.49771715,0.00022191,2]
[312015074,1705548644750,-500.0,0.00022191,2]
[312015075,1705548644760,-500.0,0.00022191,2]
[312015076,1705548644769,-500.0,0.00022191,2]
[312015077,1705548644779,-500.0,0.00022191,2]
[312015078,1705548644788,-500.0,0.00022191,2]
[312015079,1705548644802,-500.0,0.00022191,2]
[312015080,1705548644811,-615.61400587,0.00022191,2]
[312015081,1705548644820,-500.0,0.00022191,2]
[312015082,1705548644830,-500.0,0.00022191,2]
[312015083,1705548644839,-500.0,0.00022191,2]
[312015084,1705548644849,-500.0,0.00022191,2]
[312015085,1705548644858,-513.18383322,0.00022191,2]
[312015086,1705548644868,-500.0,0.00022191,2]
[312015087,1705548644878,-500.0,0.00022191,2]
[312015088,1705548644894,-511.54517395,0.00022191,2]
[312015089,1705548644903,-500.0,0.00022191,2]
[312015090,1705548644913,-500.0,0.00022191,2]
[312015091,1705548644922,-509.97229709,0.00022191,2]
[312015092,1705548644932,-500.0,0.00022191,2]
[312015093,1705548644942,-500.0,0.00022191,2]
[312015094,1705548644951,-500.0,0.00022191,2]
[312015095,1705548644961,-500.0,0.00022191,2]
[312015096,1705548644970,-500.0,0.00022191,2]
[312015097,1705548644979,-500.0,0.00022191,2]
[312015098,1705548644989,-500.0,0.00022191,2]
[312015099,1705548644998,-500.0,0.00022191,2]
[312015100,1705548645007,-500.0,0.00022191,2]
[312015101,1705548645016,-500.0,0.00022191,2]
[312015102,1705548645025,-500.0,0.00022191,2]
[312015103,1705548645035,-500.0,0.00022191,2]
[312015104,1705548645044,-500.0,0.00022191,2]
[312015105,1705548645053,-500.0,0.00022191,2]
[312015106,1705548645063,-500.0,0.00022191,2]
[312015107,1705548645072,-500.0,0.00022191,2]
[312015108,1705548645081,-500.0,0.00022191,2]
[312015109,1705548645090,-500.0,0.00022191,2]
[312015110,1705548645156,-500.0,0.00022191,2]
[312015111,1705548645165,-500.0,0.00022191,2]
[312015112,1705548645175,-512.21171602,0.00022191,2]
[312015113,1705548645184,-509.43854201,0.00022191,2]
[312015114,1705548645194,-614.14,0.00022191,2]
[312015115,1705548645203,-500.0,0.00022191,2]
[312015116,1705548645212,-857.61,0.00022191,2]
[312015117,1705548645221,-511.44270395,0.00022191,2]
[312015118,1705548645230,-500.0,0.00022191,2]
[312015119,1705548645240,-504.42478899,0.00022191,2]
[312015120,1705548645249,-521.12557148,0.00022191,2]
[312015121,1705548645258,-150.0,0.00022191,2]
[312015122,1705548645267,-194.73529615,0.00022191,2]
[312015123,1705548645288,-305.26470385,0.00022191,2]
[312015124,1705548645297,-500.0,0.00022191,2]
[312015125,1705548645307,-519.65159246,0.00022191,2]
[312015126,1705548645316,-355.80464451,0.00022191,2]
[312015127,1705548645326,-506.05,0.00022191,2]
[312015128,1705548645335,-519.43958889,0.00022191,2]
[312015129,1705548645345,-500.0,0.00022191,2]
[312015130,1705548645355,-500.0,0.00022191,2]
[312015131,1705548645364,-500.0,0.00022191,2]
[312015132,1705548645374,-500.0,0.00022191,2]
[312015133,1705548645382,-577.33,0.00022191,2]
[312015134,1705548645392,-500.0,0.00022191,2]
[312015135,1705548645401,-500.0,0.00022191,2]
[312015136,1705548645410,-500.0,0.00022191,2]
[312015137,1705548645420,-500.0,0.00022191,2]
[312015138,1705548645429,-628.74715595,0.00022191,2]
[312015139,1705548645439,-500.0,0.00022191,2]
[312015140,1705548645448,-500.0,0.00022191,2]
[312015141,1705548645457,-500.0,0.00022191,2]
[312015142,1705548645467,-500.0,0.00022191,2]
[312015143,1705548645476,-500.0,0.00022191,2]
[312015144,1705548645486,-500.0,0.00022191,2]
[312015145,1705548645495,-500.0,0.00022191,2]
[312015146,1705548645504,-500.0,0.00022191,2]
[312015147,1705548645513,-500.0,0.00022191,2]
[312015148,1705548645523,-500.0,0.00022191,2]
[312015149,1705548645532,-597.39284361,0.00022191,2]
[312015150,1705548645541,-500.0,0.00022191,2]
[312015151,1705548645550,-500.0,0.00022191,2]
[312015152,1705548645559,-500.0,0.00022191,2]
[312015153,1705548645568,-541.93039254,0.00022191,2]
[312015154,1705548645577,-500.0,0.00022191,2]
[312015155,1705548645586,-526.72322038,0.00022191,2]
[312015156,1705548645595,-500.0,0.00022191,2]
[312015157,1705548645604,-500.0,0.00022191,2]
[312015158,1705548645613,-500.0,0.00022191,2]
[312015159,1705548645622,-447.41055377,0.00022191,2]
[312015160,1705548645634,-52.58944623,0.00022191,2]
[312015161,1705548645642,-500.0,0.00022191,2]
[312015162,1705548645651,-500.0,0.00022191,2]
[312015163,1705548645660,-500.0,0.00022191,2]
[312015164,1705548645669,-500.0,0.00022191,2]
[312015165,1705548645678,-500.0,0.00022191,2]
[312015166,1705548645688,-500.0,0.00022191,2]
[312015167,1705548645697,-500.0,0.00022191,2]
[312015168,1705548645706,-500.0,0.00022191,2]
[312015169,1705548645715,-502.30443278,0.00022191,2]
[312015170,1705548645725,-500.0,0.00022191,2]
[312015171,1705548645734,-500.0,0.00022191,2]
[312015172,1705548645743,-500.0,0.00022191,2]
[312015173,1705548645752,-500.0,0.00022191,2]
[312015174,1705548645761,-617.53407838,0.00022191,2]
[312015175,1705548645770,-511.94988109,0.00022191,2]
[312015176,1705548645779,-602.69693597,0.00022191,2]
[312015177,1705548645789,-500.0,0.00022191,2]
[312015178,1705548645802,-500.0,0.00022191,2]
[312015179,1705548645812,-155.93,0.00022191,2]
[312015180,1705548645821,-542.27,0.00022191,2]
[312015181,1705548645830,-500.0,0.00022191,2]
[312015182,1705548645840,-545.4933777,0.00022191,2]
[312015183,1705548645850,-500.0,0.00022191,2]
[312015184,1705548645859,-510.58920204,0.00022191,2]
[312015185,1705548645869,-250.58566384,0.00022191,2]
[312015186,1705548645916,-249.41433616,0.00022191,2]
[312015187,1705548645925,-619.63336508,0.00022191,2]
[312015188,1705548645934,-139.23917438,0.00022191,2]
[312015189,1705548646291,-500.0,0.00021917,2]
[312015190,1705548646301,-157.27148485,0.00021917,2]
[312015191,1705548646311,-500.0,0.00021917,2]
[312015192,1705548646320,-360.76082562,0.00022191,2]
[312015193,1705548646329,-500.0,0.00022191,2]
[312015194,1705548646339,-500.0,0.00022191,2]
[312015195,1705548646348,-500.0,0.00022191,2]
[312015196,1705548646358,-500.0,0.00022191,2]
[312015197,1705548646367,-500.0,0.00022191,2]
[312015199,1705548646376,-679.57,0.00022191,2]
[312015201,1705548646385,-510.93239127,0.00022191,2]
[312015203,1705548646394,-500.0,0.00022191,2]
[312015204,1705548646403,-500.0,0.00022191,2]
[312015205,1705548646412,-500.0,0.00022191,2]
[312015206,1705548646421,-500.0,0.00022191,2]
[312015207,1705548646430,-213.5,0.00022191,2]
[312015208,1705548646439,-643.72,0.00022191,2]
[312015209,1705548646449,-738.43,0.00022191,2]
[312015210,1705548646458,-500.0,0.00022191,2]
[312015211,1705548646468,-500.0,0.00022191,2]
[312015212,1705548646477,-613.83813926,0.00022191,2]
[312015213,1705548646489,-782.46186074,0.00022191,2]
[312015214,1705548646498,-17.53813926,0.00022191,2]
[312015215,1705548646510,-429.42847603,0.00022191,2]
[312015216,1705548646522,-53.03338471,0.00022191,2]
[312015218,1705548646531,-850.21,0.00022191,2]
[312015220,1705548646540,-500.0,0.00022191,2]
[312015222,1705548646549,-505.02206165,0.00022191,2]
[312015224,1705548646558,-706.76,0.00022191,2]
[312015226,1705548646567,-500.0,0.00022191,2]
[312015228,1705548646576,-500.0,0.00022191,2]
[312015229,1705548646585,-500.0,0.00022191,2]
[312015230,1705548646594,-501.45537485,0.00022191,2]
[312015231,1705548646603,-500.0,0.00022191,2]
[312015232,1705548646612,-508.89480138,0.00022191,2]
[312015233,1705548646621,-393.88825795,0.00022191,2]
[312015234,1705548646637,-114.86151067,0.00022191,2]
[312015235,1705548646645,-267.65575947,0.00022191,2]
[312015236,1705548646658,-232.34424053,0.00022191,2]
[312015237,1705548646667,-500.0,0.00022191,2]
[312015238,1705548646676,-500.0,0.00022191,2]
[312015239,1705548646685,-500.0,0.00022191,2]
[312015240,1705548646695,-226.57,0.00022191,2]
[312015241,1705548646705,-272.09416931,0.00022191,2]
[312015244,1705549334986,-370.42818622,0.00018506,2]
[312015246,1705549354113,-161.8053613,0.00018506,2]
[312015247,1705549354136,-67.76645248,0.00018506,2]
[312015306,1705549681954,652.63,0.00018276,2]
[312015313,1705549718636,370.42818622,0.00018502,2]
[312015328,1705549832177,-468.82049449,0.00018503,2]
[312015329,1705549832188,-167.79420821,0.00018503,2]
[312015330,1705549832199,-94.03890882,0.00018506,2]
[312015331,1705549832209,-206.0,0.00018766,2]
[312015332,1705549832219,-150.0,0.00019853,2]
[312015333,1705549832230,-179.79,0.00020077,2]
[312015334,1705549832240,-150.0,0.00020082,2]
[312015335,1705549832249,-150.0,0.00020089,2]
[312015336,1705549832259,-160.12,0.0002017,2]
[312015337,1705549832269,-164.37530644,0.00020316,2]
[312015338,1705549832279,-190.06,0.00020328,2]
[312015339,1705549832289,-109.22680422,0.00020346,2]
[312015340,1705549832301,-71.09319578,0.00020346,2]
[312015341,1705549832310,-150.99,0.00020346,2]
[312015342,1705549832320,-160.39,0.00020416,2]
[312015343,1705549832330,-670.9538453,0.00020529,2]
[312015344,1705549832341,-169.0461547,0.00020529,2]
[312015345,1705549832351,-652.63,0.0002054,2]
[312015346,1705549832361,-370.42818622,0.00020553,2]
[312015347,1705549832371,-73.32580968,0.00020554,2]
[312015348,1705549832388,-76.67419032,0.00020554,2]
[312015349,1705549832397,-163.48,0.00020555,2]
[312015350,1705549832407,-342.23303493,0.00020555,2]
[312015351,1705549832424,-1397.97451286,0.00020555,2]
[312015352,1705549832435,-237.50245221,0.00020555,2]
[312015353,1705549832445,-738.44,0.00020559,2]
[312015354,1705549832454,-714.58,0.00020562,2]
[312015355,1705549832465,-797.56,0.00020564,2]
[312015356,1705549832475,-160.0,0.00020564,2]
[312015357,1705549832485,-176.31176477,0.00020568,2]
[312015358,1705549832497,-561.11823523,0.00020568,2]
[312015359,1705549832506,-286.25111155,0.00020577,2]
[312015360,1705549832518,-452.20888845,0.00020577,2]
[312015361,1705549832527,-725.03,0.00020594,2]
[312015362,1705549832537,-514.40041108,0.00020623,2]
[312015363,1705549832549,-218.99958892,0.00020623,2]
[312015364,1705549832559,-164.37530638,0.00020648,2]
[312015365,1705549832568,-150.0,0.00020664,2]
[312015366,1705549832577,-726.49,0.00020673,2]
[312015367,1705549832586,-904.45666503,0.00020709,2]
[312015368,1705549832625,-740.58240107,0.00020709,2]
[312015369,1705549832636,-563.92816788,0.00020709,2]
[312015370,1705549832648,-762.21875318,0.00020709,2]
[312015371,1705549832660,-685.04401284,0.00020709,2]
[312015372,1705549832669,-714.24,0.00020753,2]
[312015373,1705549832678,-163.63,0.00020761,2]
[312015374,1705549832688,-720.41,0.00020808,2]
[312015375,1705549832697,-190.06,0.00020858,2]
[312015376,1705549832706,-250.0,0.000209,2]
[312015377,1705549832716,-164.37530638,0.00020979,2]
[312015378,1705549832725,-150.0,0.00021173,2]
[312015379,1705549832735,-164.37530638,0.00021311,2]
[312015380,1705549832745,-190.06,0.00021387,2]
[312015381,1705549832754,-250.0,0.000214,2]
[312015382,1705549832763,-150.0,0.00021512,2]
[312015383,1705549832773,-797.56,0.00021542,2]
[312015384,1705549832783,-188.0509554,0.00021542,3]
[312015385,1705549832792,-150.0,0.00021544,2]
[312015386,1705549832801,-163.48,0.00021583,2]
[312015387,1705549832811,-1977.71,0.00021583,2]
[312015388,1705549832820,-150.0,0.00021627,2]
[312015389,1705549832829,-164.37530638,0.00021643,2]
[312015390,1705549832839,-1300.0,0.000218,7]
[312015391,1705549832848,-750.0,0.00021817,2]
[312015392,1705549832857,-2930.2263309,0.00021817,2]
[312015393,1705549832874,-2069.7736691,0.00021817,2]
[312015394,1705549832883,-280.2263309,0.00021817,2]
[312015397,1705549838256,-1290.7169691,0.00021817,2]
[312015398,1705549838267,-246.5171,0.00021817,2]
[312015399,1705549838280,-2105.96661719,0.00021817,2]
[312015400,1705549838294,-26794.03338281,0.00021817,2]
[312015401,1705549838305,-2224.37618374,0.00021817,2]
[312015402,1705549838319,-29193.78498801,0.00021817,2]
[312015403,1705549838332,-643.08479251,0.00021817,2]
[312015404,1705549838345,-1007.38297438,0.00021817,2]
[312015405,1705549838363,-6724.85455948,0.00021817,2]
[312015406,1705549838380,-10175.56634167,0.00021817,2]
[312015407,1705549838493,-798.09662059,0.00021817,2]
[312015408,1705549838550,-4787.85353962,0.00021817,2]
[312015409,1705549838562,-504.85673287,0.00021817,2]
[312015410,1705549838572,-2700.0,0.000219,7]
[312015411,1705549838583,-250.0,0.000219,2]
[312015412,1705549838594,-246.52398851,0.00021915,2]
[312015413,1705549838606,-150.0,0.00021916,2]
[312015414,1705549838616,-503.29383998,0.00021917,2]
[312015415,1705549838627,-500.0,0.00021917,2]
[312015416,1705549838638,-192.29518926,0.00021917,2]
[312015417,1705549838650,-500.0,0.00021917,2]
[312015418,1705549838661,-236.16764887,0.00021917,2]
[312015419,1705549838672,-500.79720861,0.00021917,2]
[312015420,1705549838683,-500.0,0.00021917,2]
[312015421,1705549838694,-505.93277786,0.00021917,2]
[312015422,1705549838704,-500.0,0.00021917,2]
[312015423,1705549838715,-500.0,0.00021917,2]
[312015424,1705549838727,-518.21868354,0.00021917,2]
[312015425,1705549838737,-500.0,0.00021917,2]
[312015426,1705549838748,-503.45083646,0.00021917,2]
[312015427,1705549838759,-500.0,0.00021917,2]
[312015428,1705549838770,-500.0,0.00021917,2]
[312015429,1705549838780,-540.23127804,0.00021917,2]
[312015430,1705549838792,-500.0,0.00021917,2]
[312015431,1705549838803,-507.28566948,0.00021917,2]
[312015432,1705549838814,-500.0,0.00021917,2]
[312015433,1705549838825,-512.94324613,0.00021917,2]
[312015434,1705549838835,-500.0,0.00021917,2]
[312015435,1705549838846,-500.0,0.00021917,2]
[312015436,1705549838857,-500.0,0.00021917,2]
[312015437,1705549838868,-500.0,0.00021917,2]
[312015438,1705549838879,-500.0,0.00021917,2]
[312015439,1705549838889,-500.0,0.00021917,2]
[312015440,1705549838900,-500.0,0.00021917,2]
[312015441,1705549838910,-506.91373949,0.00021917,2]
[312015442,1705549838920,-500.0,0.00021917,2]
[312015443,1705549838931,-500.0,0.00021917,2]
[312015444,1705549838941,-500.0,0.00021917,2]
[312015445,1705549838951,-500.0,0.00021917,2]
[312015446,1705549838962,-500.0,0.00021917,2]
[312015447,1705549838972,-506.84586844,0.00021917,2]
[312015448,1705549838983,-500.0,0.00021917,2]
[312015449,1705549838993,-500.0,0.00021917,2]
[312015450,1705549839004,-500.0,0.00021917,2]
[312015451,1705549839014,-500.15729284,0.00021917,2]
[312015452,1705549839024,-556.87099505,0.00021917,2]
[312015453,1705549839035,-642.00415276,0.00021917,2]
[312015454,1705549839046,-500.0,0.00021917,2]
[312015455,1705549839056,-500.0,0.00021917,2]
[312015456,1705549839066,-500.0,0.00021917,2]
[312015457,1705549839077,-524.88828768,0.00021917,2]
[312015458,1705549839087,-500.0,0.00021917,2]
[312015459,1705549839097,-525.8381687,0.00021917,2]
[312015460,1705549839107,-500.0,0.00021917,2]
[312015461,1705549839118,-501.06947248,0.00021917,2]
[312015462,1705549839128,-589.29798315,0.00021917,2]